[Event "*** Titled Tuesday Blitz"]
[Site "Chess.com"]
[Date "2020.12.29"]
[Round "6"]
[White "mshuaau0"]
[Black "anon481216"]
[Result "1/2-1/2"]
[WhiteElo "2218"]
[BlackElo "2407"]
[TimeControl "180+1"]
[EndTime "11:07:27 PST"]
[Termination "Game drawn - insufficient material"]

1. e4 {[%clk 0:03:00.9]} 1... c5 {[%clk 0:02:59.8]} 2. Nf3 {[%clk 0:03:00.1]}
2... Nf6 {[%clk 0:03:00.3]} 3. Nc3 {[%clk 0:02:59.9]} 3... d5 {[%clk 0:02:59.6]}
4. exd5 {[%clk 0:02:59.7]} 4... Nxd5 {[%clk 0:02:59.7]} 5. Bb5+ {[%clk
0:02:59.2]} 5... Bd7 {[%clk 0:02:59.3]} 6. Bxd7+ {[%clk 0:02:58.9]} 6... Qxd7
{[%clk 0:02:59.4]} 7. O-O {[%clk 0:02:57.5]} 7... Nc6 {[%clk 0:02:59]} 8. Nxd5
{[%clk 0:02:51.8]} 8... Qxd5 {[%clk 0:02:58.6]} 9. d3 {[%clk 0:02:51.8]} 9... g6
{[%clk 0:02:56.8]} 10. Re1 {[%clk 0:02:50]} 10... Bg7 {[%clk 0:02:56.4]} 11. Qe2
{[%clk 0:02:48.1]} 11... O-O {[%clk 0:02:55.9]} 12. Qe4 {[%clk 0:02:42.8]} 12...
Rfd8 {[%clk 0:02:53.2]} 13. Qxd5 {[%clk 0:02:41.6]} 13... Rxd5 {[%clk
0:02:52.8]} 14. Rb1 {[%clk 0:02:36.3]} 14... e6 {[%clk 0:02:52]} 15. Bd2 {[%clk
0:02:18.1]} 15... Nb4 {[%clk 0:02:48]} 16. Bxb4 {[%clk 0:02:12.7]} 16... cxb4
{[%clk 0:02:48.5]} 17. Re4 {[%clk 0:02:11.6]} 17... a5 {[%clk 0:02:44.3]} 18.
Rc4 {[%clk 0:02:11.1]} 18... Rad8 {[%clk 0:02:32.5]} 19. Kf1 {[%clk 0:02:10.3]}
19... h6 {[%clk 0:02:09.2]} 20. h4 {[%clk 0:01:50.7]} 20... f5 {[%clk
0:02:08.5]} 21. a3 {[%clk 0:01:46]} 21... Bf8 {[%clk 0:01:31.5]} 22. axb4 {[%clk
0:01:41.2]} 22... Bxb4 {[%clk 0:01:31.1]} 23. c3 {[%clk 0:01:39.4]} 23... Bc5
{[%clk 0:01:17.4]} 24. d4 {[%clk 0:01:39]} 24... Bd6 {[%clk 0:01:14.4]} 25. Ra4
{[%clk 0:01:24]} 25... Rb5 {[%clk 0:01:00.1]} 26. c4 {[%clk 0:01:12.8]} 26...
Rb4 {[%clk 0:00:59.9]} 27. Rxb4 {[%clk 0:01:12.9]} 27... Bxb4 {[%clk 0:00:59.8]}
28. Ke2 {[%clk 0:01:06.1]} 28... g5 {[%clk 0:00:50.6]} 29. hxg5 {[%clk
0:01:04.9]} 29... hxg5 {[%clk 0:00:50.6]} 30. Rd1 {[%clk 0:00:42.1]} 30... g4
{[%clk 0:00:49.5]} 31. Ne5 {[%clk 0:00:41.3]} 31... Bd6 {[%clk 0:00:42.1]} 32.
Nd3 {[%clk 0:00:41.1]} 32... b6 {[%clk 0:00:39.8]} 33. f3 {[%clk 0:00:39]} 33...
gxf3+ {[%clk 0:00:37.4]} 34. gxf3 {[%clk 0:00:38.9]} 34... Kf7 {[%clk
0:00:28.4]} 35. f4 {[%clk 0:00:38.4]} 35... Rh8 {[%clk 0:00:27.3]} 36. Rf1
{[%clk 0:00:29.3]} 36... Rh2+ {[%clk 0:00:26]} 37. Rf2 {[%clk 0:00:29.5]} 37...
Rh1 {[%clk 0:00:26]} 38. Kf3 {[%clk 0:00:24]} 38... Rd1 {[%clk 0:00:24.4]} 39.
Ke3 {[%clk 0:00:21.8]} 39... a4 {[%clk 0:00:22.7]} 40. Rc2 {[%clk 0:00:20.8]}
40... Rh1 {[%clk 0:00:18.1]} 41. c5 {[%clk 0:00:18.1]} 41... bxc5 {[%clk
0:00:18.2]} 42. dxc5 {[%clk 0:00:17.7]} 42... Bc7 {[%clk 0:00:17.7]} 43. Kd4
{[%clk 0:00:16.1]} 43... Rh4 {[%clk 0:00:15.3]} 44. Ke3 {[%clk 0:00:16.3]} 44...
Ke7 {[%clk 0:00:14.8]} 45. Rc4 {[%clk 0:00:14.5]} 45... e5 {[%clk 0:00:14.1]}
46. Rxa4 {[%clk 0:00:10.4]} 46... exf4+ {[%clk 0:00:14.3]} 47. Kf3 {[%clk
0:00:09.9]} 47... Rh3+ {[%clk 0:00:13.8]} 48. Ke2 {[%clk 0:00:09.7]} 48... Re3+
{[%clk 0:00:13.5]} 49. Kd2 {[%clk 0:00:09.6]} 49... Re4 {[%clk 0:00:13.1]} 50.
Ra7 {[%clk 0:00:05.5]} 50... Kd8 {[%clk 0:00:12.7]} 51. b4 {[%clk 0:00:04.6]}
51... f3 {[%clk 0:00:12.3]} 52. b5 {[%clk 0:00:04.5]} 52... Re2+ {[%clk
0:00:06.8]} 53. Kc3 {[%clk 0:00:04.6]} 53... f2 {[%clk 0:00:06.5]} 54. Ra1
{[%clk 0:00:04.4]} 54... f4 {[%clk 0:00:03.7]} 55. Rf1 {[%clk 0:00:03]} 55...
Be5+ {[%clk 0:00:02]} 56. Nxe5 {[%clk 0:00:02.3]} 56... Rxe5 {[%clk 0:00:02.6]}
57. Kd4 {[%clk 0:00:02.7]} 57... Re2 {[%clk 0:00:02.6]} 58. b6 {[%clk
0:00:02.6]} 58... Rb2 {[%clk 0:00:03.1]} 59. Ke4 {[%clk 0:00:01.6]} 59... Kd7
{[%clk 0:00:03.4]} 60. Kxf4 {[%clk 0:00:02]} 60... Kc6 {[%clk 0:00:03.9]} 61.
Kf3 {[%clk 0:00:02.9]} 61... Kxc5 {[%clk 0:00:04.2]} 62. Rxf2 {[%clk 0:00:03.8]}
62... Rxf2+ {[%clk 0:00:03.7]} 63. Kxf2 {[%clk 0:00:04.7]} 63... Kxb6 {[%clk
0:00:04.4]} 1/2-1/2

[Event "*** Titled Tuesday Blitz"]
[Site "Chess.com"]
[Date "2020.12.29"]
[Round "6"]
[White "Ajedrez_con_German"]
[Black "AniJak"]
[Result "1-0"]
[WhiteElo "2529"]
[BlackElo "2349"]
[TimeControl "180+1"]
[EndTime "11:07:29 PST"]
[Termination "Ajedrez_con_German won on time"]

1. d4 {[%clk 0:03:00.9]} 1... d5 {[%clk 0:02:59.3]} 2. Bf4 {[%clk 0:02:41.8]}
2... Nf6 {[%clk 0:02:58.2]} 3. e3 {[%clk 0:02:41.8]} 3... e6 {[%clk 0:02:57.6]}
4. Nf3 {[%clk 0:02:41.6]} 4... Nh5 {[%clk 0:02:53.7]} 5. Bg5 {[%clk 0:02:40.7]}
5... f6 {[%clk 0:02:53.9]} 6. Bh4 {[%clk 0:02:40.8]} 6... g6 {[%clk 0:02:44.4]}
7. Be2 {[%clk 0:02:37.3]} 7... Ng7 {[%clk 0:02:43.5]} 8. c4 {[%clk 0:02:32.6]}
8... Nf5 {[%clk 0:02:38.1]} 9. Bg3 {[%clk 0:02:32]} 9... Nxg3 {[%clk 0:02:35.7]}
10. hxg3 {[%clk 0:02:31.9]} 10... Bg7 {[%clk 0:02:36.1]} 11. Nc3 {[%clk
0:02:31.4]} 11... c6 {[%clk 0:02:34.6]} 12. Qc2 {[%clk 0:02:27.3]} 12... Na6
{[%clk 0:02:32.2]} 13. a3 {[%clk 0:02:26.9]} 13... Nc7 {[%clk 0:02:27.1]} 14.
Rxh7 {[%clk 0:02:20.6]} 14... Kf7 {[%clk 0:02:14.3]} 15. Rxh8 {[%clk 0:01:57.2]}
15... Qxh8 {[%clk 0:02:15.2]} 16. O-O-O {[%clk 0:01:57]} 16... Bd7 {[%clk
0:02:10.9]} 17. Nh4 {[%clk 0:01:55.2]} 17... f5 {[%clk 0:02:08.4]} 18. Nf3
{[%clk 0:01:46.4]} 18... Qf8 {[%clk 0:02:04.5]} 19. Ng5+ {[%clk 0:01:40.5]}
19... Ke7 {[%clk 0:01:57.6]} 20. Qb3 {[%clk 0:01:34]} 20... b6 {[%clk
0:01:50.6]} 21. Kb1 {[%clk 0:01:26.2]} 21... dxc4 {[%clk 0:01:06.1]} 22. Bxc4
{[%clk 0:01:22]} 22... Bh6 {[%clk 0:00:58.4]} 23. Nf3 {[%clk 0:01:16.6]} 23...
Bg7 {[%clk 0:00:56.6]} 24. Rh1 {[%clk 0:01:05.4]} 24... b5 {[%clk 0:00:52]} 25.
Qb4+ {[%clk 0:00:50.9]} 25... Kf7 {[%clk 0:00:51.7]} 26. Qxf8+ {[%clk
0:00:47.3]} 26... Rxf8 {[%clk 0:00:50.7]} 27. Be2 {[%clk 0:00:46]} 27... Kg8
{[%clk 0:00:46.2]} 28. Na2 {[%clk 0:00:45.7]} 28... a5 {[%clk 0:00:44.2]} 29.
Nc1 {[%clk 0:00:45.8]} 29... Nd5 {[%clk 0:00:44.2]} 30. Nd3 {[%clk 0:00:45.7]}
30... Bc8 {[%clk 0:00:33.8]} 31. Nfe5 {[%clk 0:00:45.9]} 31... Ne7 {[%clk
0:00:27.3]} 32. Rc1 {[%clk 0:00:44.7]} 32... Bb7 {[%clk 0:00:24.8]} 33. Nd7
{[%clk 0:00:42.6]} 33... Rd8 {[%clk 0:00:22.8]} 34. N7c5 {[%clk 0:00:42.6]}
34... Bc8 {[%clk 0:00:22]} 35. Bf3 {[%clk 0:00:37.2]} 35... g5 {[%clk
0:00:21.7]} 36. g4 {[%clk 0:00:37.4]} 36... fxg4 {[%clk 0:00:21.1]} 37. Bxg4
{[%clk 0:00:37.6]} 37... Kf7 {[%clk 0:00:21.6]} 38. Rh1 {[%clk 0:00:36.2]} 38...
Nd5 {[%clk 0:00:15.1]} 39. Bh5+ {[%clk 0:00:32.5]} 39... Kf8 {[%clk 0:00:14.6]}
40. Bg4 {[%clk 0:00:32.5]} 40... Kf7 {[%clk 0:00:14.8]} 41. Bh5+ {[%clk
0:00:33.1]} 41... Kf8 {[%clk 0:00:15.2]} 42. Bf3 {[%clk 0:00:34]} 42... Kf7
{[%clk 0:00:15.3]} 43. Rc1 {[%clk 0:00:32.6]} 43... Bf8 {[%clk 0:00:14.4]} 44.
Ne5+ {[%clk 0:00:30.9]} 44... Kg8 {[%clk 0:00:13.6]} 45. Nxc6 {[%clk 0:00:30.8]}
45... Rd6 {[%clk 0:00:13.2]} 46. Ne5 {[%clk 0:00:29]} 46... b4 {[%clk
0:00:13.2]} 47. Ne4 {[%clk 0:00:19.8]} 47... Rd8 {[%clk 0:00:12.7]} 48. a4
{[%clk 0:00:17.9]} 48... Be7 {[%clk 0:00:11.6]} 49. Nc5 {[%clk 0:00:15.9]} 49...
Bxc5 {[%clk 0:00:10.6]} 50. Rxc5 {[%clk 0:00:15.4]} 50... Ba6 {[%clk 0:00:08.7]}
51. Bxd5 {[%clk 0:00:14.6]} 51... exd5 {[%clk 0:00:08.4]} 52. Rxa5 {[%clk
0:00:14.8]} 52... Bf1 {[%clk 0:00:08]} 53. g3 {[%clk 0:00:14.7]} 53... Rf8
{[%clk 0:00:08.2]} 54. f4 {[%clk 0:00:14.2]} 54... gxf4 {[%clk 0:00:08.1]} 55.
gxf4 {[%clk 0:00:15.1]} 55... Rc8 {[%clk 0:00:07.3]} 56. Rxd5 {[%clk 0:00:13.2]}
56... Bg2 {[%clk 0:00:07.9]} 57. Rc5 {[%clk 0:00:12.5]} 57... Ra8 {[%clk
0:00:07.4]} 58. b3 {[%clk 0:00:12.5]} 58... Be4+ {[%clk 0:00:06.8]} 59. Kb2
{[%clk 0:00:12.8]} 59... Kg7 {[%clk 0:00:07.5]} 60. Rc7+ {[%clk 0:00:11.7]}
60... Kf6 {[%clk 0:00:05.7]} 61. Rc4 {[%clk 0:00:10.7]} 61... Rh8 {[%clk
0:00:04.5]} 62. Rxb4 {[%clk 0:00:10.5]} 62... Rh2+ {[%clk 0:00:05]} 63. Ka3
{[%clk 0:00:10.7]} 63... Bb1 {[%clk 0:00:04.3]} 64. Rb6+ {[%clk 0:00:10.4]}
64... Kf5 {[%clk 0:00:04.2]} 65. Nc4 {[%clk 0:00:09.1]} 65... Ke4 {[%clk
0:00:04.3]} 66. Kb4 {[%clk 0:00:08.7]} 66... Bd3 {[%clk 0:00:01.9]} 67. a5
{[%clk 0:00:08.6]} 1-0

[Event "*** Titled Tuesday Blitz"]
[Site "Chess.com"]
[Date "2020.12.29"]
[Round "6"]
[White "TengisChess"]
[Black "Pertinhez76"]
[Result "1-0"]
[WhiteElo "2413"]
[BlackElo "2117"]
[TimeControl "180+1"]
[EndTime "11:07:30 PST"]
[Termination "TengisChess won by resignation"]

1. d4 {[%clk 0:03:00.9]} 1... Nf6 {[%clk 0:02:23.6]} 2. c4 {[%clk 0:03:00.4]}
2... e5 {[%clk 0:02:22.7]} 3. dxe5 {[%clk 0:02:59.4]} 3... Ng4 {[%clk
0:02:22.7]} 4. Nf3 {[%clk 0:02:58.1]} 4... Bc5 {[%clk 0:02:18.8]} 5. e3 {[%clk
0:02:56.9]} 5... Nc6 {[%clk 0:02:19.1]} 6. g3 {[%clk 0:02:56.8]} 6... O-O {[%clk
0:02:17.5]} 7. Bg2 {[%clk 0:02:56.8]} 7... Ngxe5 {[%clk 0:02:16.7]} 8. O-O
{[%clk 0:02:56.6]} 8... d6 {[%clk 0:02:14.5]} 9. b3 {[%clk 0:02:55.9]} 9... Bg4
{[%clk 0:02:10.5]} 10. Nbd2 {[%clk 0:02:46.7]} 10... Qf6 {[%clk 0:02:09.7]} 11.
Rb1 {[%clk 0:02:40.1]} 11... Nd3 {[%clk 0:01:50.2]} 12. Ne4 {[%clk 0:02:35.8]}
12... Qg6 {[%clk 0:01:04.4]} 13. Qxd3 {[%clk 0:02:33.3]} 13... Nb4 {[%clk
0:01:03.5]} 14. Qc3 {[%clk 0:02:10.5]} 14... Qxe4 {[%clk 0:00:58.1]} 15. Bb2
{[%clk 0:02:10.2]} 15... f6 {[%clk 0:00:51.1]} 16. Nd4 {[%clk 0:01:49]} 16...
Qd3 {[%clk 0:00:47.9]} 17. a3 {[%clk 0:01:35.9]} 17... Qxc3 {[%clk 0:00:44.8]}
18. Bxc3 {[%clk 0:01:36.8]} 18... Bxd4 {[%clk 0:00:42]} 19. exd4 {[%clk
0:01:33.7]} 19... Nc6 {[%clk 0:00:42]} 20. h3 {[%clk 0:01:28.9]} 20... Bh5
{[%clk 0:00:38.9]} 21. g4 {[%clk 0:01:28.4]} 21... Bg6 {[%clk 0:00:38.2]} 22.
Rbc1 {[%clk 0:01:24.5]} 22... Rfe8 {[%clk 0:00:36.6]} 23. Rfe1 {[%clk
0:01:24.2]} 23... Kf8 {[%clk 0:00:36.5]} 24. b4 {[%clk 0:01:22.6]} 24... a6
{[%clk 0:00:35.3]} 25. c5 {[%clk 0:01:22.4]} 25... dxc5 {[%clk 0:00:26.3]} 26.
bxc5 {[%clk 0:01:21]} 26... Rad8 {[%clk 0:00:23.8]} 27. d5 {[%clk 0:01:20.7]}
27... Rxe1+ {[%clk 0:00:19.8]} 28. Rxe1 {[%clk 0:01:18.2]} 28... Ne7 {[%clk
0:00:19.7]} 29. Rd1 {[%clk 0:01:08.8]} 29... Bf7 {[%clk 0:00:15.2]} 30. d6
{[%clk 0:01:07.5]} 30... cxd6 {[%clk 0:00:15.4]} 31. cxd6 {[%clk 0:01:06.6]}
31... Nc6 {[%clk 0:00:15.2]} 32. d7 {[%clk 0:00:32.1]} 32... Be6 {[%clk
0:00:11.8]} 33. Bxc6 {[%clk 0:00:31.8]} 33... bxc6 {[%clk 0:00:10.4]} 34. Rd6
{[%clk 0:00:31.6]} 34... Kf7 {[%clk 0:00:09.2]} 35. Rxc6 {[%clk 0:00:27.4]}
35... Rxd7 {[%clk 0:00:09.6]} 36. Rxa6 {[%clk 0:00:27.1]} 36... Rd3 {[%clk
0:00:09.1]} 37. Bb4 {[%clk 0:00:18.9]} 37... Rxh3 {[%clk 0:00:09.3]} 38. Kg2
{[%clk 0:00:18.2]} 38... Rb3 {[%clk 0:00:09.2]} 39. f3 {[%clk 0:00:17.7]} 39...
Bd5 {[%clk 0:00:07.8]} 40. Ra7+ {[%clk 0:00:16.5]} 40... Kg6 {[%clk 0:00:06.9]}
41. Bf8 {[%clk 0:00:13.1]} 41... Bxf3+ {[%clk 0:00:07.8]} 42. Kg3 {[%clk
0:00:12.9]} 42... Bd5+ {[%clk 0:00:07.4]} 43. Kf2 {[%clk 0:00:12.6]} 43... Bf7
{[%clk 0:00:08.3]} 44. a4 {[%clk 0:00:09.7]} 44... Rb2+ {[%clk 0:00:07.5]} 45.
Kg3 {[%clk 0:00:09]} 45... Ra2 {[%clk 0:00:08.4]} 46. a5 {[%clk 0:00:08.8]}
46... h6 {[%clk 0:00:08.4]} 47. a6 {[%clk 0:00:07.9]} 47... Ra3+ {[%clk
0:00:07.9]} 48. Bxa3 {[%clk 0:00:06.3]} 48... Bd5 {[%clk 0:00:05.7]} 49. Rb7
{[%clk 0:00:06]} 49... h5 {[%clk 0:00:02.9]} 50. Rb5 {[%clk 0:00:05.9]} 50...
h4+ {[%clk 0:00:02.3]} 51. Kxh4 {[%clk 0:00:05.3]} 51... Bc4 {[%clk 0:00:03]}
52. Ra5 {[%clk 0:00:04.8]} 52... Bd5 {[%clk 0:00:03.2]} 53. a7 {[%clk 0:00:05]}
53... Ba8 {[%clk 0:00:04.1]} 54. Rb5 {[%clk 0:00:05.4]} 54... Kf7 {[%clk
0:00:04.9]} 55. Rb8 {[%clk 0:00:06.3]} 55... Bf3 {[%clk 0:00:04.7]} 56. a8=Q
{[%clk 0:00:06.5]} 56... Bxa8 {[%clk 0:00:05.3]} 57. Rxa8 {[%clk 0:00:07.4]}
57... Ke6 {[%clk 0:00:05.3]} 58. Ra7 {[%clk 0:00:08.3]} 58... g5+ {[%clk
0:00:06.1]} 59. Kg3 {[%clk 0:00:08]} 59... Ke5 {[%clk 0:00:07]} 60. Bb2+ {[%clk
0:00:07.8]} 60... Ke4 {[%clk 0:00:07.9]} 61. Bxf6 {[%clk 0:00:07.3]} 61... Kd5
{[%clk 0:00:08.8]} 62. Bxg5 {[%clk 0:00:07.7]} 62... Ke6 {[%clk 0:00:09.1]} 63.
Bf4 {[%clk 0:00:08]} 63... Kd5 {[%clk 0:00:08.8]} 64. g5 {[%clk 0:00:08.1]}
64... Ke4 {[%clk 0:00:09.7]} 65. g6 {[%clk 0:00:08.5]} 65... Kf5 {[%clk
0:00:10.6]} 66. g7 {[%clk 0:00:08.9]} 66... Ke6 {[%clk 0:00:11.5]} 67. g8=Q+
{[%clk 0:00:08.8]} 67... Kf5 {[%clk 0:00:11.4]} 68. Qg5+ {[%clk 0:00:08.8]}
68... Ke4 {[%clk 0:00:11.5]} 69. Qe5+ {[%clk 0:00:09.4]} 69... Kd3 {[%clk
0:00:11.9]} 70. Rd7+ {[%clk 0:00:09.9]} 70... Kc2 {[%clk 0:00:12.8]} 71. Qc5+
{[%clk 0:00:10.1]} 71... Kb1 {[%clk 0:00:13.7]} 72. Rb7+ {[%clk 0:00:10.4]} 1-0

[Event "*** Titled Tuesday Blitz"]
[Site "Chess.com"]
[Date "2020.12.29"]
[Round "6"]
[White "1f3_2g41-0"]
[Black "nitpicker"]
[Result "1-0"]
[WhiteElo "2432"]
[BlackElo "2257"]
[TimeControl "180+1"]
[EndTime "11:07:36 PST"]
[Termination "1f3_2g41-0 won by resignation"]

1. e4 {[%clk 0:03:00.9]} 1... d5 {[%clk 0:02:59.1]} 2. exd5 {[%clk 0:03:01]}
2... Qxd5 {[%clk 0:02:59.3]} 3. Nc3 {[%clk 0:03:01.9]} 3... Qd8 {[%clk
0:02:59.4]} 4. Nf3 {[%clk 0:03:02.6]} 4... Bg4 {[%clk 0:02:56.3]} 5. d4 {[%clk
0:03:02]} 5... Nf6 {[%clk 0:02:55.4]} 6. Bc4 {[%clk 0:03:02.3]} 6... e6 {[%clk
0:02:53]} 7. O-O {[%clk 0:03:01.9]} 7... c6 {[%clk 0:02:52.3]} 8. h3 {[%clk
0:03:01]} 8... Bxf3 {[%clk 0:02:51.6]} 9. Qxf3 {[%clk 0:03:00]} 9... Qxd4 {[%clk
0:02:51.5]} 10. Bb3 {[%clk 0:03:00]} 10... Nbd7 {[%clk 0:02:50.2]} 11. Rd1
{[%clk 0:02:59.1]} 11... Qb6 {[%clk 0:02:49.5]} 12. Bf4 {[%clk 0:02:58.3]} 12...
Be7 {[%clk 0:02:43.1]} 13. Bg5 {[%clk 0:02:51]} 13... Rd8 {[%clk 0:02:36]} 14.
Qg3 {[%clk 0:02:32.5]} 14... O-O {[%clk 0:02:22.9]} 15. Be3 {[%clk 0:02:10.4]}
15... Qa5 {[%clk 0:02:20.5]} 16. Rd4 {[%clk 0:01:59.8]} 16... c5 {[%clk
0:01:51.6]} 17. Rd2 {[%clk 0:01:19.5]} 17... b5 {[%clk 0:01:49.5]} 18. a4 {[%clk
0:01:15.9]} 18... c4 {[%clk 0:01:45.2]} 19. Ba2 {[%clk 0:00:51.8]} 19... b4
{[%clk 0:01:45]} 20. Ne2 {[%clk 0:00:38.4]} 20... Qxa4 {[%clk 0:01:30.9]} 21.
Rdd1 {[%clk 0:00:34.5]} 21... Qxc2 {[%clk 0:01:12.9]} 22. Nd4 {[%clk 0:00:34.1]}
22... Qg6 {[%clk 0:01:00.3]} 23. Qxg6 {[%clk 0:00:31.5]} 23... hxg6 {[%clk
0:00:59.6]} 24. Bxc4 {[%clk 0:00:32.1]} 24... Ne5 {[%clk 0:00:57.9]} 25. Bb3
{[%clk 0:00:29.5]} 25... Bc5 {[%clk 0:00:48.6]} 26. Nxe6 {[%clk 0:00:18]} 26...
Rxd1+ {[%clk 0:00:47.2]} 27. Rxd1 {[%clk 0:00:17.8]} 27... Bxe3 {[%clk
0:00:46.9]} 28. Nxf8 {[%clk 0:00:18.1]} 28... Bb6 {[%clk 0:00:42.5]} 29. Re1
{[%clk 0:00:09.4]} 29... Bc7 {[%clk 0:00:40.5]} 30. Rxe5 {[%clk 0:00:07.2]}
30... Bxe5 {[%clk 0:00:40.1]} 31. Nxg6 {[%clk 0:00:07.8]} 31... Bxb2 {[%clk
0:00:38.4]} 32. Ne7+ {[%clk 0:00:08.5]} 32... Kf8 {[%clk 0:00:37.8]} 33. Nc6
{[%clk 0:00:09.4]} 33... Bc3 {[%clk 0:00:31.4]} 34. Nxa7 {[%clk 0:00:09.7]}
34... Ne4 {[%clk 0:00:30.8]} 35. Nc6 {[%clk 0:00:09.8]} 35... Nd2 {[%clk
0:00:27]} 36. Na5 {[%clk 0:00:09.5]} 36... Bd4 {[%clk 0:00:22.2]} 37. Bc2 {[%clk
0:00:09.3]} 37... Ke7 {[%clk 0:00:19.6]} 38. Nb3 {[%clk 0:00:09.7]} 38... Bb6
{[%clk 0:00:16.8]} 39. Nxd2 {[%clk 0:00:09.5]} 39... Kd6 {[%clk 0:00:16.3]} 40.
Nb3 {[%clk 0:00:10.1]} 40... Kd5 {[%clk 0:00:16.6]} 41. Kf1 {[%clk 0:00:10.2]}
41... Kc4 {[%clk 0:00:17]} 42. Ke2 {[%clk 0:00:09.8]} 42... Kc3 {[%clk
0:00:17.6]} 43. Bd1 {[%clk 0:00:10.4]} 43... Ba7 {[%clk 0:00:17.2]} 44. g4
{[%clk 0:00:10.8]} 44... Bb6 {[%clk 0:00:16.7]} 45. f4 {[%clk 0:00:11.4]} 45...
Ba7 {[%clk 0:00:16.6]} 46. f5 {[%clk 0:00:11.9]} 46... Bb6 {[%clk 0:00:16.5]}
47. Nd2 {[%clk 0:00:12.5]} 47... Bd8 {[%clk 0:00:16.8]} 48. Bb3 {[%clk
0:00:13.1]} 48... f6 {[%clk 0:00:15.4]} 49. Be6 {[%clk 0:00:12]} 49... Bc7
{[%clk 0:00:15.1]} 50. Ne4+ {[%clk 0:00:12.4]} 50... Kc2 {[%clk 0:00:14.8]} 51.
Nc5 {[%clk 0:00:12.5]} 51... Bd6 {[%clk 0:00:13.9]} 52. Nb3 {[%clk 0:00:13.1]}
52... Be5 {[%clk 0:00:13.9]} 53. h4 {[%clk 0:00:13.7]} 53... Bf4 {[%clk
0:00:13.9]} 54. Kf3 {[%clk 0:00:13.4]} 54... Bh6 {[%clk 0:00:13.9]} 55. Ke4
{[%clk 0:00:13.5]} 55... Kc3 {[%clk 0:00:14.2]} 56. Nc5 {[%clk 0:00:13]} 56...
Bd2 {[%clk 0:00:12.4]} 57. Nb3 {[%clk 0:00:12.6]} 57... Bh6 {[%clk 0:00:11.8]}
58. Bf7 {[%clk 0:00:12.9]} 58... Kb2 {[%clk 0:00:07.6]} 59. Kd4 {[%clk
0:00:12.3]} 59... Ka3 {[%clk 0:00:06.8]} 60. Kc5 {[%clk 0:00:12.6]} 60... Bf4
{[%clk 0:00:06.7]} 61. Kc6 {[%clk 0:00:11.6]} 61... Bg3 {[%clk 0:00:06.8]} 62.
h5 {[%clk 0:00:10.6]} 62... Bf4 {[%clk 0:00:07.4]} 63. Kd7 {[%clk 0:00:11]}
63... Bh6 {[%clk 0:00:07.4]} 64. Ke7 {[%clk 0:00:11.6]} 64... Kb2 {[%clk
0:00:07.7]} 65. Kf8 {[%clk 0:00:12.1]} 65... Kc3 {[%clk 0:00:08]} 66. Kg8 {[%clk
0:00:11.1]} 66... Kd3 {[%clk 0:00:08.3]} 67. Kh7 {[%clk 0:00:09.8]} 67... Ke4
{[%clk 0:00:08.1]} 68. Kg6 {[%clk 0:00:10.2]} 68... Kf4 {[%clk 0:00:08.4]} 69.
Nc5 {[%clk 0:00:10.6]} 69... Kxg4 {[%clk 0:00:08.7]} 70. Nd3 {[%clk 0:00:10.1]}
70... Kf3 {[%clk 0:00:08.5]} 71. Nxb4 {[%clk 0:00:09.8]} 71... Kg4 {[%clk
0:00:08]} 72. Nc6 {[%clk 0:00:10.4]} 72... Kh4 {[%clk 0:00:07.8]} 73. Nd8 {[%clk
0:00:10.7]} 73... Kg4 {[%clk 0:00:06.8]} 74. Ne6 {[%clk 0:00:11.3]} 74... Kh4
{[%clk 0:00:04.9]} 75. Nxg7 {[%clk 0:00:11.9]} 75... Bg5 {[%clk 0:00:02.6]} 76.
h6 {[%clk 0:00:10.8]} 76... Bxh6 {[%clk 0:00:02.2]} 77. Kxh6 {[%clk 0:00:11.7]}
77... Kg4 {[%clk 0:00:02.2]} 78. Kg6 {[%clk 0:00:12.4]} 78... Kf4 {[%clk
0:00:03.1]} 79. Kxf6 {[%clk 0:00:13.1]} 79... Ke4 {[%clk 0:00:03.8]} 80. Kg6
{[%clk 0:00:13.8]} 80... Ke3 {[%clk 0:00:04.7]} 81. f6 {[%clk 0:00:14.4]} 81...
Kd3 {[%clk 0:00:05.6]} 82. Be6 {[%clk 0:00:14.9]} 82... Ke4 {[%clk 0:00:05.6]}
83. f7 {[%clk 0:00:15.7]} 83... Ke3 {[%clk 0:00:06.5]} 84. f8=Q {[%clk
0:00:16.2]} 1-0